fUSD/lending_fUSD_20250118
["ID","MTS","AMOUNT","RATE_DAILY","PERIOD"]
[349462041,1737195009638,-500.0,0.00019708,2]
[349462042,1737195009662,-500.0,0.00019708,2]
[349462043,1737195009684,-500.0,0.00019708,2]
[349462044,1737195009707,-500.0,0.00019708,2]
[349462045,1737195009731,-500.0,0.00019708,2]
[349462046,1737195009755,-500.0,0.00019708,2]
[349462047,1737195009778,-500.0,0.00019708,2]
[349462048,1737195009802,-500.0,0.00019708,2]
[349462049,1737195009826,-500.0,0.00019708,2]
[349462050,1737195009849,-500.0,0.00019708,2]
[349462051,1737195009872,-500.0,0.00019708,2]
[349462052,1737195009895,-500.0,0.00019708,2]
[349462053,1737195009917,-500.0,0.00019708,2]
[349462054,1737195009939,-500.0,0.00019708,2]
[349462055,1737195009962,-500.0,0.00019708,2]
[349462056,1737195009985,-500.0,0.00019708,2]
[349462057,1737195010009,-500.0,0.00019708,2]
[349462058,1737195010034,-500.0,0.00019708,2]
[349462059,1737195010058,-500.0,0.00019708,2]
[349462060,1737195010082,-1235.48,0.00019708,2]
[349462061,1737195010105,-500.0,0.00019708,2]
[349462062,1737195010129,-500.0,0.00019708,2]
[349462063,1737195010153,-1571.93,0.00019708,2]
[349462064,1737195010177,-500.0,0.00019708,2]
[349462065,1737195010200,-159.64145527,0.00019708,2]
[349462066,1737195011449,-340.35854473,0.00019708,2]
[349462067,1737195011473,-500.0,0.00019708,2]
[349462068,1737195011497,-500.0,0.00019708,2]
[349462069,1737195011520,-500.0,0.00019708,2]
[349462070,1737195011544,-500.0,0.00019708,2]
[349462071,1737195011569,-500.0,0.00019708,2]
[349462072,1737195011593,-500.0,0.00019708,2]
[349462073,1737195011617,-500.0,0.00019708,2]
[349462074,1737195011640,-500.0,0.00019708,2]
[349462075,1737195011667,-500.0,0.00019708,2]
[349462076,1737195011692,-500.0,0.00019708,2]
[349462077,1737195011716,-500.0,0.00019708,2]
[349462078,1737195011739,-500.0,0.00019708,2]
[349462079,1737195011761,-500.0,0.00019708,2]
[349462080,1737195011784,-500.0,0.00019708,2]
[349462081,1737195011807,-500.0,0.00019708,2]
[349462082,1737195011831,-500.0,0.00019708,2]
[349462083,1737195011854,-500.0,0.00019708,2]
[349462084,1737195011879,-500.0,0.00019708,2]
[349462085,1737195011903,-500.0,0.00019708,2]
[349462086,1737195011926,-500.0,0.00019708,2]
[349462087,1737195011951,-500.0,0.00019708,2]
[349462088,1737195011974,-500.0,0.00019708,2]
[349462089,1737195011997,-500.0,0.00019708,2]
[349462090,1737195012021,-500.0,0.00019708,2]
[349462091,1737195012058,-500.0,0.00019708,2]
[349462092,1737195012084,-500.0,0.00019708,2]
[349462093,1737195012110,-500.0,0.00019708,2]
[349462094,1737195012137,-500.0,0.00019708,2]
[349462095,1737195012162,-500.0,0.00019708,2]
[349462096,1737195012189,-500.0,0.00019708,2]
[349462097,1737195012217,-500.0,0.00019708,2]
[349462098,1737195012240,-500.0,0.00019708,2]
[349462099,1737195012264,-500.0,0.00019708,2]
[349462100,1737195012289,-500.0,0.00019708,2]
[349462101,1737195012316,-500.0,0.00019708,2]
[349462102,1737195012339,-500.0,0.00019708,2]
[349462103,1737195012362,-500.0,0.00019708,2]
[349462104,1737195012386,-555.12672468,0.00019708,2]
[349462105,1737195012560,-222.77696895,0.00019708,2]
[349462106,1737195012584,-500.0,0.00019708,2]
[349462107,1737195012608,-533.48966908,0.00019708,2]
[349462108,1737195012633,-500.0,0.00019708,2]
[349462109,1737195012657,-500.0,0.00019708,2]
[349462110,1737195012681,-500.0,0.00019708,2]
[349462111,1737195012705,-500.0,0.00019708,2]
[349462112,1737195012730,-500.0,0.00019708,2]
[349462113,1737195012754,-293.03414097,0.00019708,2]
[349462114,1737195012777,-500.0,0.00019708,2]
[349462115,1737195012801,-500.0,0.00019708,2]
[349462116,1737195012825,-500.0,0.00019708,2]
[349462117,1737195012850,-55.21395159,0.00019708,2]
[349462118,1737195014330,-500.0,0.00019707,2]
[349462119,1737195014353,-444.78604841,0.00019708,2]
[349462120,1737195014376,-510.06874389,0.00019708,2]
[349462121,1737195014400,-500.0,0.00019708,2]
[349462122,1737195014423,-500.0,0.00019708,2]
[349462123,1737195014448,-200.0,0.00019708,2]
[349462124,1737195014473,-1000.0,0.00019726,14]
[349462125,1737195014497,-159.67966877,0.00019736,2]
[349462126,1737195014520,-159.67966877,0.00019768,2]
[349462127,1737195014544,-5000.0,0.00019779,2]
[349462128,1737195014569,-156.45995296,0.00019779,2]
[349462129,1737195014594,-156.45995296,0.0001979,2]
[349462130,1737195014619,-500.0,0.00019798,2]
[349462131,1737195014644,-500.0,0.00019798,2]
[349462132,1737195014668,-500.0,0.00019798,2]
[349462133,1737195014692,-500.0,0.00019798,2]
[349462134,1737195014716,-500.0,0.00019798,2]
[349462135,1737195014740,-500.0,0.00019798,2]
[349462136,1737195014765,-500.0,0.00019798,2]
[349462137,1737195014788,-500.0,0.00019798,2]
[349462138,1737195014811,-3063.08,0.00019798,2]
[349462139,1737195014834,-500.0,0.00019798,2]
[349462140,1737195014858,-500.0,0.00019798,2]
[349462141,1737195014882,-500.0,0.00019798,2]
[349462142,1737195014906,-500.0,0.00019798,2]
[349462143,1737195014931,-500.0,0.00019798,2]
[349462144,1737195014955,-500.0,0.00019798,2]
[349462145,1737195014978,-574.99,0.00019798,2]
[349462146,1737195015002,-500.0,0.00019798,2]
[349462147,1737195015026,-500.0,0.00019798,2]
[349462148,1737195015063,-500.0,0.00019798,2]
[349462149,1737195015087,-500.0,0.00019798,2]
[349462150,1737195015112,-500.0,0.00019798,2]
[349462151,1737195015137,-500.0,0.00019798,2]
[349462152,1737195015161,-500.0,0.00019798,2]
[349462153,1737195015185,-500.0,0.00019798,2]
[349462154,1737195015212,-500.0,0.00019798,2]
[349462155,1737195015237,-500.0,0.00019798,2]
[349462156,1737195015261,-74.79596424,0.00019798,2]
[349462157,1737195016635,-425.20403576,0.00019798,2]
[349462158,1737195016661,-500.0,0.00019798,2]
[349462159,1737195016686,-500.0,0.00019798,2]
[349462160,1737195016711,-500.0,0.00019798,2]
[349462161,1737195016737,-500.0,0.00019798,2]
[349462162,1737195016761,-572.47,0.00019798,2]
[349462163,1737195016790,-500.0,0.00019798,2]
[349462164,1737195016817,-500.0,0.00019798,2]
[349462165,1737195016843,-500.0,0.00019798,2]
[349462166,1737195016868,-500.0,0.00019798,2]
[349462167,1737195016893,-500.0,0.00019798,2]
[349462168,1737195016918,-682.7612,0.00019798,2]
[349462169,1737195016942,-866.99,0.00019799,2]
[349462170,1737195016966,-500.0,0.00019799,2]
[349462171,1737195016990,-1949.67433754,0.000198,2]
[349462172,1737195017014,-1333.763985,0.000198,2]
[349462173,1737195017038,-156.45995296,0.000198,2]
[349462174,1737195017063,-973.76870241,0.000198,2]
[349462175,1737195017089,-159.67966877,0.000198,2]
[349462176,1737195017115,-1000.0,0.00019801,2]
[349462177,1737195017140,-1000.0,0.00019801,2]
[349462178,1737195017163,-1000.0,0.00019801,2]
[349462179,1737195017192,-1000.0,0.00019801,2]
[349462180,1737195017217,-1000.0,0.00019801,2]
[349462181,1737195017241,-1000.0,0.00019801,2]
[349462182,1737195017265,-1000.0,0.00019801,2]
[349462183,1737195017288,-1000.0,0.00019801,2]
[349462184,1737195017315,-1000.0,0.00019801,2]
[349462185,1737195017339,-431.4842,0.00019801,2]
[349462186,1737195017363,-3447.74391756,0.0001987,2]
[349462187,1737195018758,-500.0,0.00019707,2]
[349462188,1737195018786,-615.2,0.00019798,2]
[349462189,1737195018812,-19573.06608244,0.0001987,2]
[349462190,1737195018835,-150.37,0.00019871,2]
[349462191,1737195018860,-500.0,0.00019873,2]
[349462192,1737195018884,-500.0,0.00019878,2]
[349462193,1737195018914,-569.66,0.00019878,2]
[349462194,1737195018939,-500.0,0.00019878,2]
[349462195,1737195018963,-500.0,0.00019878,2]
[349462196,1737195018988,-500.0,0.00019878,2]
[349462197,1737195019012,-500.0,0.00019878,2]
[349462198,1737195019037,-500.0,0.00019878,2]
[349462199,1737195019066,-91.70391756,0.00019878,2]
[349462200,1737195023789,-408.29608244,0.00019878,2]
[349462201,1737195023814,-500.0,0.00019878,2]
[349462202,1737195023839,-500.0,0.00019878,2]
[349462203,1737195023863,-500.0,0.00019878,2]
[349462204,1737195023888,-866.99,0.00019879,2]
[349462205,1737195023911,-500.0,0.00019879,2]
[349462206,1737195023935,-500.0,0.00019879,2]
[349462207,1737195023958,-500.0,0.00019879,2]
[349462208,1737195023980,-500.0,0.00019879,2]
[349462209,1737195024003,-396.5220359,0.00019879,2]
[349462210,1737195024028,-500.0,0.00019879,2]
[349462211,1737195024053,-500.0,0.00019879,2]
[349462212,1737195024078,-500.0,0.00019879,2]
[349462213,1737195024102,-1358.9,0.00019879,2]
[349462214,1737195024124,-1358.9,0.00019879,2]
[349462215,1737195024147,-1358.9,0.00019879,2]
[349462216,1737195024170,-1358.9,0.00019879,2]
[349462217,1737195024193,-1358.9,0.00019879,2]
[349462218,1737195024216,-500.0,0.00019879,2]
[349462219,1737195024238,-500.0,0.00019879,2]
[349462220,1737195024261,-500.0,0.00019879,2]
[349462221,1737195024286,-500.0,0.00019879,2]
[349462222,1737195024311,-500.0,0.00019879,2]
[349462223,1737195024334,-500.0,0.00019879,2]
[349462224,1737195024357,-500.0,0.00019879,2]
[349462225,1737195024380,-500.0,0.00019879,2]
[349462226,1737195024406,-500.0,0.00019879,2]
[349462227,1737195024429,-500.0,0.00019879,2]
[349462228,1737195024452,-500.0,0.00019879,2]
[349462229,1737195024477,-500.0,0.00019879,2]
[349462230,1737195024499,-500.0,0.00019879,2]
[349462231,1737195024523,-500.0,0.00019879,2]
[349462232,1737195024546,-500.0,0.00019879,2]
[349462233,1737195024572,-500.0,0.00019879,2]
[349462234,1737195024594,-500.0,0.00019879,2]
[349462235,1737195024616,-500.0,0.00019879,2]
[349462236,1737195024639,-500.0,0.00019879,2]
[349462237,1737195024663,-500.0,0.00019879,2]
[349462238,1737195024686,-500.0,0.00019879,2]
[349462239,1737195024709,-500.0,0.00019879,2]
[349462240,1737195024734,-500.0,0.00019879,2]
[349462241,1737195024757,-33.69188166,0.00019879,2]
[349462242,1737195026246,-500.0,0.00019707,2]
[349462243,1737195026270,-241.53,0.00019878,2]
[349462244,1737195026295,-466.30811834,0.00019879,2]
[349462245,1737195026321,-500.0,0.00019879,2]
[349462246,1737195026344,-500.0,0.00019879,2]
[349462247,1737195026368,-500.0,0.00019879,2]
[349462248,1737195026393,-500.0,0.00019879,2]
[349462249,1737195026417,-316.81531622,0.00019879,2]
[349462250,1737195026443,-500.0,0.00019879,2]
[349462251,1737195026466,-500.0,0.00019879,2]
[349462252,1737195026489,-500.0,0.00019879,2]
[349462253,1737195026512,-500.0,0.00019879,2]
[349462254,1737195026535,-500.0,0.00019879,2]
[349462255,1737195026559,-500.0,0.00019879,2]
[349462256,1737195026585,-500.0,0.00019879,2]
[349462257,1737195026609,-500.0,0.00019879,2]
[349462258,1737195026632,-500.0,0.00019879,2]
[349462259,1737195026655,-500.0,0.00019879,2]
[349462260,1737195026680,-500.0,0.00019879,2]
[349462261,1737195026703,-500.0,0.00019879,2]
[349462262,1737195026725,-500.0,0.00019879,2]
[349462263,1737195026747,-500.0,0.00019879,2]
[349462264,1737195026774,-500.0,0.00019879,2]
[349462265,1737195026797,-500.0,0.00019879,2]
[349462266,1737195026826,-441.18,0.00019879,2]
[349462267,1737195026850,-500.0,0.00019879,2]
[349462268,1737195026873,-500.0,0.00019879,2]
[349462269,1737195026899,-500.0,0.00019879,2]
[349462270,1737195026925,-500.0,0.00019879,2]
[349462271,1737195026949,-500.0,0.00019879,2]
[349462272,1737195026975,-500.0,0.00019879,2]
[349462273,1737195026998,-500.0,0.00019879,2]
[349462274,1737195027022,-500.0,0.00019879,2]
[349462275,1737195027048,-500.0,0.00019879,2]
[349462276,1737195027073,-500.0,0.00019879,2]
[349462277,1737195027097,-500.0,0.00019879,2]
[349462278,1737195027120,-500.0,0.00019879,2]
[349462279,1737195027143,-500.0,0.00019879,2]
[349462280,1737195027166,-500.0,0.00019879,2]
[349462281,1737195027189,-500.0,0.00019879,2]
[349462282,1737195027213,-500.0,0.00019879,2]
[349462283,1737195027237,-500.0,0.00019879,2]
[349462284,1737195027260,-500.0,0.00019879,2]
[349462285,1737195027284,-500.0,0.00019879,2]
[349462286,1737195027308,-500.0,0.00019879,2]
[349462287,1737195027334,-500.0,0.00019879,2]
[349462288,1737195027358,-500.0,0.00019879,2]
[349462289,1737195027381,-500.0,0.00019879,2]
[349462290,1737195027406,-500.0,0.00019879,2]
[349462291,1737195027429,-500.0,0.00019879,2]
[349462292,1737195027452,-500.0,0.00019879,2]
[349462293,1737195027476,-34.16656544,0.00019879,2]
[349462299,1737195031413,-833.1396,0.00019698,2]
[349462300,1737195031423,-465.83343456,0.00019879,2]
[349462301,1737195031432,-500.0,0.00019879,2]
[349462303,1737195031441,-500.0,0.00019879,2]
[349462304,1737195031450,-500.0,0.00019879,2]
[349462305,1737195031459,-500.0,0.00019879,2]
[349462306,1737195031468,-248.29410618,0.00019879,2]
[349462307,1737195031480,-500.0,0.00019879,2]
[349462308,1737195031490,-500.0,0.00019879,2]
[349462309,1737195031499,-500.0,0.00019879,2]
[349462310,1737195031508,-122.53075865,0.00019879,2]
[349462311,1737195031565,-377.46924135,0.00019879,2]
[349462312,1737195031580,-500.0,0.00019879,2]
[349462313,1737195031590,-500.0,0.00019879,2]
[349462314,1737195031600,-500.0,0.00019879,2]
[349462315,1737195031609,-500.0,0.00019879,2]
[349462316,1737195031619,-500.0,0.00019879,2]
[349462317,1737195031628,-500.0,0.00019879,2]
[349462318,1737195031638,-500.0,0.00019879,2]
[349462319,1737195031647,-500.0,0.00019879,2]
[349462320,1737195031657,-500.0,0.00019879,2]
[349462321,1737195031666,-500.0,0.00019879,2]
[349462322,1737195031675,-500.0,0.00019879,2]
[349462323,1737195031685,-500.0,0.00019879,2]
[349462324,1737195031694,-500.0,0.00019879,2]
[349462325,1737195031704,-500.0,0.00019879,2]
[349462326,1737195031713,-500.0,0.00019879,2]
[349462327,1737195031723,-500.0,0.00019879,2]
[349462328,1737195031732,-500.0,0.00019879,2]
[349462329,1737195031741,-500.0,0.00019879,2]
[349462330,1737195031750,-500.0,0.00019879,2]
[349462331,1737195031760,-500.0,0.00019879,2]
[349462332,1737195031769,-500.0,0.00019879,2]
[349462333,1737195031779,-500.0,0.00019879,2]
[349462334,1737195031788,-1235.48,0.00019879,2]
[349462335,1737195031798,-1235.48,0.00019879,2]
[349462336,1737195031807,-1235.48,0.00019879,2]
[349462337,1737195031816,-1235.48,0.00019879,2]
[349462338,1737195031828,-1235.48,0.00019879,2]
[349462339,1737195031837,-500.0,0.00019879,2]
[349462340,1737195031846,-500.0,0.00019879,2]
[349462341,1737195031856,-500.0,0.00019879,2]
[349462342,1737195031865,-500.0,0.00019879,2]
[349462343,1737195031875,-500.0,0.00019879,2]
[349462344,1737195031885,-1571.93,0.00019879,2]
[349462345,1737195031895,-1571.93,0.00019879,2]
[349462346,1737195031905,-1571.93,0.00019879,2]
[349462347,1737195031915,-1571.93,0.00019879,2]
[349462348,1737195031925,-1571.93,0.00019879,2]
[349462349,1737195031934,-500.0,0.00019879,2]
[349462350,1737195031944,-500.0,0.00019879,2]
[349462351,1737195031954,-500.0,0.00019879,2]
[349462352,1737195031963,-500.0,0.00019879,2]
[349462353,1737195031972,-500.0,0.00019879,2]
[349462354,1737195031982,-500.0,0.00019879,2]
[349462355,1737195031991,-500.0,0.00019879,2]
[349462356,1737195032000,-500.0,0.00019879,2]
[349462357,1737195032010,-500.0,0.00019879,2]
[349462358,1737195032019,-500.0,0.00019879,2]
[349462359,1737195032028,-500.0,0.00019879,2]
[349462360,1737195032037,-500.0,0.00019879,2]
[349462361,1737195032047,-500.0,0.00019879,2]
[349462362,1737195032057,-500.0,0.00019879,2]
[349462363,1737195032066,-500.0,0.00019879,2]
[349462364,1737195032077,-500.0,0.00019879,2]
[349462365,1737195032086,-500.0,0.00019879,2]
[349462366,1737195032095,-500.0,0.00019879,2]
[349462367,1737195032104,-500.0,0.00019879,2]
[349462368,1737195032114,-500.0,0.00019879,2]
[349462369,1737195032124,-500.0,0.00019879,2]
[349462370,1737195032134,-500.0,0.00019879,2]
[349462371,1737195032144,-500.0,0.00019879,2]
[349462372,1737195032153,-500.0,0.00019879,2]
[349462373,1737195032162,-500.0,0.00019879,2]
[349462374,1737195032172,-366.2965851,0.00019879,2]
[349462375,1737195032186,-133.7034149,0.00019879,2]
[349462376,1737195032195,-500.0,0.00019879,2]
[349462377,1737195032204,-500.0,0.00019879,2]
[349462378,1737195032214,-500.0,0.00019879,2]
[349462379,1737195032223,-500.0,0.00019879,2]
[349462380,1737195032233,-500.0,0.00019879,2]
[349462381,1737195032242,-517.26360986,0.00019879,2]
[349462382,1737195032251,-500.0,0.00019879,2]
[349462383,1737195032260,-500.0,0.00019879,2]
[349462384,1737195032269,-500.0,0.00019879,2]
[349462385,1737195032280,-500.0,0.00019879,2]
[349462386,1737195032289,-500.0,0.00019879,2]
[349462387,1737195032299,-500.0,0.00019879,2]
[349462388,1737195032309,-500.0,0.00019879,2]
[349462389,1737195032325,-522.92,0.00019879,2]
[349462390,1737195032334,-500.0,0.00019879,2]
[349462391,1737195032344,-500.0,0.00019879,2]
[349462392,1737195032356,-500.0,0.00019879,2]
[349462393,1737195032365,-500.0,0.00019879,2]
[349462394,1737195032375,-500.0,0.00019879,2]
[349462395,1737195032544,-500.0,0.00019879,2]
[349462396,1737195032554,-500.0,0.00019879,2]
[349462397,1737195032565,-500.0,0.00019879,2]
[349462398,1737195032577,-500.0,0.00019879,2]
[349462399,1737195032587,-500.0,0.00019879,2]
[349462400,1737195032596,-500.0,0.00019879,2]
[349462401,1737195032606,-500.0,0.00019879,2]
[349462402,1737195032615,-500.0,0.00019879,2]
[349462403,1737195032625,-500.0,0.00019879,2]
[349462404,1737195032635,-500.0,0.00019879,2]
[349462405,1737195032645,-500.0,0.00019879,2]
[349462406,1737195032654,-500.0,0.00019879,2]
[349462407,1737195032664,-500.0,0.00019879,2]
[349462408,1737195032673,-227.00929242,0.00019879,2]
[349462409,1737195032682,-333.1449495,0.00019879,2]
[349462410,1737195032703,-166.8550505,0.00019879,2]
[349462411,1737195032713,-432.08157289,0.00019879,2]
[349462419,1737195037473,-283.71336898,0.00019568,2]
[349462420,1737195037497,-616.28663102,0.00019568,2]
[349462421,1737195037507,-228.59821931,0.00019707,2]
[349462422,1737195037666,-271.40178069,0.00019707,2]
[349462423,1737195037677,-500.0,0.00019798,2]
[349462424,1737195037686,-500.0,0.00019798,2]
[349462425,1737195037695,-500.0,0.00019878,2]
[349462426,1737195037705,-67.91842711,0.00019879,2]
[349462427,1737195037715,-151.6297922,0.00019879,2]
[349462562,1737195042986,-500.0,0.00019707,2]
[349462563,1737195042997,-181.66969376,0.0001978,2]
[349462564,1737195043007,-44.04830624,0.00019878,2]
[349462582,1737195045624,-181.66969374,0.00019787,2]
[349462583,1737195045634,-455.95169376,0.00019878,2]
[349462584,1737195045645,-500.0,0.00019878,2]
[349462585,1737195045655,-348.3702078,0.00019879,2]
[349462586,1737195045664,-500.0,0.00019879,2]
[349462587,1737195045674,-500.0,0.00019879,2]
[349462588,1737195045683,-500.0,0.00019879,2]
[349462589,1737195045693,-500.0,0.00019879,2]
[349462590,1737195045703,-500.0,0.00019879,2]
[349462591,1737195045712,-500.0,0.00019879,2]
[349462592,1737195045721,-500.0,0.00019879,2]
[349462593,1737195045731,-500.0,0.00019879,2]
[349462594,1737195045740,-500.0,0.00019879,2]
[349462595,1737195045749,-500.0,0.00019879,2]
[349462596,1737195045759,-257.47497909,0.00019879,2]
[349462597,1737195045771,-242.52502091,0.00019879,2]
[349462598,1737195045780,-274.15627909,0.00019879,2]
[349462599,1737195045792,-225.84372091,0.00019879,2]
[349462600,1737195045801,-500.0,0.00019879,2]
[349462601,1737195045811,-147.05322756,0.00019879,2]
[349462609,1737195082286,185.71,0.00012329,2]
[349462610,1737195104681,-157.241,0.0001891,2]
[349462611,1737195104706,-178.3,0.00018911,2]
[349462612,1737195104728,-500.0,0.00019568,2]
[349462613,1737195104752,-506.18569332,0.00019594,2]
[349462614,1737195104776,-500.0,0.00019594,2]
[349462615,1737195104800,-207.06527248,0.00019594,2]
[349462616,1737195104824,-500.0,0.00019594,2]
[349462617,1737195104848,-500.0,0.00019594,2]
[349462618,1737195104871,-500.50215401,0.00019594,2]
[349462619,1737195104894,-500.0,0.00019594,2]
[349462620,1737195104919,-510.73365964,0.00019594,2]
[349462621,1737195104943,-501.44627638,0.00019594,2]
[349462622,1737195104967,-606.68028171,0.00019594,2]
[349462623,1737195104991,-16168.9043,0.00019608,2]
[349462624,1737195105019,-2868.3865,0.00019608,2]
[349462625,1737195105043,-294.55486246,0.00019698,2]
[349462626,1737195107987,-200.0,0.000191,6]
[349462627,1737195108013,-705.44513754,0.00019698,2]
[349462628,1737195108037,-2500.0,0.00019698,2]
[349462629,1737195108062,-500.0,0.00019707,2]
[349462630,1737195108087,-500.0,0.00019707,2]
[349462631,1737195108111,-500.0,0.00019707,2]
[349462632,1737195108138,-500.0,0.00019707,2]
[349462633,1737195108162,-500.0,0.00019707,2]
[349462634,1737195108186,-3963.61,0.00019707,2]
[349462635,1737195108211,-500.0,0.00019707,2]
[349462636,1737195108236,-500.0,0.00019707,2]
[349462637,1737195108261,-552.28,0.00019707,2]
[349462638,1737195108285,-1000.0,0.00019726,14]
[349462639,1737195108309,-12578.66486246,0.00019779,2]
[349462640,1737195111703,-500.0,0.000192,7]
[349462641,1737195111729,-800.0,0.000193,7]
[349462642,1737195111755,-500.0,0.00019594,2]
[349462643,1737195111780,-23200.0,0.00019779,2]
[349462645,1737195193237,341.968422,0.00022899,120]
[349462646,1737195195490,2000.0,0.00022899,120]
[349462647,1737195289010,1004.6888487,0.0002289,120]
[349462648,1737195394554,168.24,0.00015066,2]
[349462649,1737195441671,1005.29504116,0.00023,120]
[349462650,1737195745025,777.39,0.0001669,2]
[349462651,1737195757841,153.72,0.00010137,2]
[349462654,1737195909188,2876.01,0.00012,2]
[349462655,1737195909217,215920.47973693,0.00012,2]
[349462659,1737195953141,-1080.53903908,0.000154,2]
[349462660,1737195953164,-153.72,0.00017599,2]
[349462661,1737195953187,-211.57,0.00018476,2]
[349462662,1737195953211,-760.88585089,0.00018504,2]
[349462663,1737196012887,185.71,0.00012329,2]
[349462664,1737196026091,-55.05899249,0.00018504,2]
[349462665,1737196026114,-250.0,0.00018522,2]
[349462666,1737196026138,-98.73623254,0.00018542,2]
[349462667,1737196027091,-717.20861084,0.00018542,2]
[349462668,1737196027114,-479.28,0.00018604,2]
[349462669,1737196027137,-200.0,0.00018642,2]
[349462670,1737196027159,-336.09189076,0.00018683,2]
[349462671,1737196039187,-250.0,0.00018522,2]
[349462672,1737196039212,-291.18810924,0.00018683,2]
[349462673,1737196039234,-134.71012869,0.00018714,2]
[349462674,1737196042146,-696.31987131,0.00018714,2]
[349462675,1737196042167,-964.06359855,0.00018727,2]
[349462676,1737196080500,86759.26838026,0.0001,2]
[349462720,1737196231627,-839.68992052,0.00018713,2]
[349462724,1737196231645,-320.06817588,0.00018713,2]
[349462729,1737196231793,-9883.71344884,0.00018713,2]
[349462730,1737196231809,-4743.88845476,0.00018713,2]
[349462731,1737196231818,-2893.13640145,0.00018727,2]
[349462732,1737196231827,-1794.45,0.00018735,2]
[349462733,1737196231836,-1000.0,0.00018752,2]
[349462734,1737196231845,-168.02,0.00018753,2]
[349462735,1737196231854,-250.0,0.00018762,2]
[349462736,1737196231865,-986.29,0.00018841,2]
[349462737,1737196231873,-777.39,0.00018954,2]
[349462738,1737196231882,-174.16,0.0001911,2]
[349462739,1737196231891,-211.57,0.000194,2]
[349462740,1737196231901,-422.078,0.000195,2]
[349462741,1737196231910,-500.0,0.00019594,2]
[349462742,1737196231919,-500.0,0.00019594,2]
[349462743,1737196231928,-500.0,0.00019594,2]
[349462744,1737196231938,-501.02539573,0.00019594,2]
[349462745,1737196231947,-501.98640393,0.00019594,2]
[349462746,1737196231956,-500.0,0.00019594,2]
[349462747,1737196231967,-500.0,0.00019594,2]
[349462748,1737196231976,-500.0,0.00019594,2]
[349462749,1737196231986,-200.92129776,0.00019594,2]
[349462750,1737196231995,-500.0,0.00019594,2]
[349462751,1737196232004,-414.94271449,0.00019594,2]
[349462752,1737196232013,-252.48665549,0.00019594,2]
[349462753,1737196232022,-500.0,0.00019594,2]
[349462754,1737196232031,-500.0,0.00019594,2]
[349462755,1737196232041,-500.0,0.00019594,2]
[349462756,1737196232051,-503.48483526,0.00019594,2]
[349462757,1737196232061,-500.0,0.00019594,2]
[349462758,1737196232072,-525.24568521,0.00019594,2]
[349462759,1737196232082,-506.00113011,0.00019594,2]
[349462760,1737196232092,-500.0,0.00019594,2]
[349462761,1737196232101,-500.0,0.00019594,2]
[349462762,1737196232111,-500.0,0.00019594,2]
[349462763,1737196232123,-500.0,0.00019594,2]
[349462764,1737196232134,-506.92338184,0.00019594,2]
[349462765,1737196232145,-4274.7205,0.00019679,2]
[349462766,1737196232155,-104.31115019,0.00019679,2]
[349462767,1737196232167,-127.84205778,0.00019679,2]